bitfinex-derivatives/quotes_ETHF0:USTF0_20250102
["timestamp","ask_amount","ask_price","bid_price","bid_amount"]
[1735838621203,0.28796,3475.4,3475.2,0.28797]
[1735838621401,0.28796,3475.4,3474.9,3.2078]
[1735838621402,1.14631,3475.3,3474.9,3.2078]
[1735838621616,0.288,3474.9,3474.7,0.28801]
[1735838621810,0.288,3474.8,3474.7,0.28801]
[1735838622106,0.28802,3474.6,3474.5,6.76498175]
[1735838622495,2.72046394,3474.7,3474.2,3.49585]
[1735838622496,0.28804,3474.4,3474.2,3.49585]
[1735838622700,0.4603,3474.3,3474.2,3.49585]
[1735838622895,0.4603,3474.3,3474.2,3.2078]
[1735838622896,0.74834,3474.3,3474.2,3.2078]
[1735838623306,0.74834,3474.3,3473.9,7.05305175]
[1735838623307,0.28806,3474.2,3473.9,7.05305175]
[1735838623607,0.4603,3474.3,3473.9,6.76498175]
[1735838623800,0.28806,3474.1,3473.9,0.28807]
[1735838624004,0.28806,3474.1,3473.9,0.28808]
[1735838624206,0.4553,3474.0,3473.9,0.28808]
[1735838624604,0.28808,3473.9,3473.8,3.2078]
[1735838624906,4.9435438,3474.0,3473.8,3.2078]
[1735838625310,5.2316138,3474.0,3473.8,3.2078]
[1735838625504,4.9435438,3474.0,3473.8,3.49588]
[1735838626105,5.62858046,3473.9,3473.8,3.49588]
[1735838626302,5.91666046,3473.9,3473.8,3.2078]
[1735838626508,5.62858046,3473.9,3473.8,3.49588]
[1735838627804,5.91666046,3473.9,3473.8,3.2078]
[1735838628105,5.62858046,3473.9,3473.8,3.49588]
[1735838628507,5.62858046,3473.9,3473.8,3.2078]
[1735838628708,6.08388046,3474.0,3473.8,3.49588]
[1735838628902,6.37195046,3474.0,3473.8,3.49588]
[1735838629410,0.28807,3473.9,3473.8,3.2078]
[1735838630110,5.91665046,3473.9,3473.8,3.2078]
[1735838631711,0.2881,3473.6,3473.4,0.28811]
[1735838631911,5.62858046,3473.9,3473.3,3.2078]
[1735838631912,0.4553,3473.5,3473.3,3.2078]
[1735838632113,0.74341,3473.5,3473.3,3.49592]
[1735838632415,0.74341,3473.5,3473.3,3.2078]
[1735838632416,0.4253,3473.4,3473.3,3.2078]
[1735838632716,0.71342,3473.4,3473.2,0.28813]
[1735838633117,0.71342,3473.4,3473.1,0.28814]
[1735838633416,0.74883,3473.3,3472.9,9.97278175]
[1735838633616,0.4607,3473.3,3473.1,0.28814]
[1735838633909,0.4607,3473.3,3472.9,6.76498175]
[1735838634112,0.28815,3473.0,3472.9,6.76498175]
[1735838634314,0.28817,3472.8,3472.6,0.28818]
[1735838634503,0.70918,3472.7,3472.5,3.49599]
[1735838634708,0.4532,3472.6,3472.5,3.49599]
[1735838636114,0.4532,3472.6,3472.5,3.2078]
[1735838636419,0.4532,3472.6,3472.5,3.49599]
[1735838638515,0.421,3472.7,3472.5,3.2078]
[1735838638719,0.4307,3473.1,3473.0,0.28815]
[1735838638923,0.4238,3473.2,3473.1,0.28814]
[1735838639212,4.48899378,3473.6,3473.5,0.28811]
[1735838639419,4.91279378,3473.6,3473.5,0.28811]
[1735838639609,5.20089378,3473.6,3473.5,0.28811]
[1735838639810,0.4238,3473.6,3473.2,0.28812]
[1735838640016,0.4238,3473.6,3472.9,3.2078]
[1735838640315,0.28811,3473.5,3473.2,0.28813]
[1735838640616,0.4238,3473.6,3472.9,3.2078]
[1735838640821,2.26516394,3473.5,3472.9,3.2078]
[1735838641018,2.26516394,3473.2,3472.4,3.2078]
[1735838641209,0.28815,3473.0,3472.4,3.2078]
[1735838641415,0.28818,3472.7,3472.6,0.28818]
[1735838641614,0.28819,3472.6,3472.5,0.28819]
[1735838642021,2.71016394,3472.9,3472.4,3.2078]
[1735838642221,0.28819,3472.5,3472.4,3.2078]
[1735838642420,0.28819,3472.6,3472.5,0.28819]
[1735838642619,0.445,3472.9,3472.4,3.2078]
[1735838642820,0.445,3472.9,3472.8,0.28817]
[1735838643126,0.445,3472.9,3472.4,3.2078]
[1735838643328,0.445,3472.9,3472.8,0.28817]
[1735838644526,0.445,3472.9,3472.8,3.49597]
[1735838646124,0.445,3472.9,3472.8,0.28817]
[1735838647624,0.445,3472.9,3472.4,3.2078]
[1735838647625,0.28817,3472.8,3472.7,0.28817]
[1735838647828,0.445,3472.9,3472.8,0.28817]
[1735838648524,0.73316,3472.9,3472.8,0.28817]
[1735838648724,0.445,3472.9,3472.4,3.2078]
[1735838648921,0.28817,3472.8,3472.7,0.28817]
[1735838649124,0.28819,3472.6,3472.5,0.28819]
[1735838649622,0.71488,3472.7,3472.6,0.28818]
[1735838650226,0.71487,3472.7,3472.6,0.28818]
[1735838650422,0.4267,3472.7,3472.4,3.2078]
[1735838650728,0.4267,3472.7,3472.6,0.28818]
[1735838651130,0.71487,3472.7,3472.6,0.28818]
[1735838651424,0.28819,3472.6,3472.5,0.28819]
[1735838651633,0.71488,3472.7,3472.6,0.28818]
[1735838652722,0.71488,3472.7,3472.4,3.2078]
[1735838652723,0.4267,3472.7,3472.4,3.2078]
[1735838653124,0.4267,3472.7,3472.6,0.28818]
[1735838653326,0.71487,3472.7,3472.6,0.28818]
[1735838653827,0.4267,3472.7,3472.6,0.28818]
[1735838654227,0.445,3472.9,3472.8,0.28817]
[1735838655729,0.445,3472.9,3472.8,3.49597]
[1735838655933,3.2078,3473.8,3472.8,3.2078]
[1735838656133,3.2078,3473.8,3473.4,0.28812]
[1735838656134,0.4423,3473.5,3473.4,0.28812]
[1735838656328,0.4397,3473.7,3473.3,3.2078]
[1735838656634,0.4397,3473.7,3473.6,0.2881]
[1735838656833,0.4423,3473.9,3473.8,0.28808]
[1735838657032,4.48899378,3474.1,3474.0,0.28807]
[1735838657237,10.20046049,3474.7,3474.3,0.28804]
[1735838657238,0.4548,3474.4,3474.3,0.28804]
[1735838657438,0.4548,3474.4,3473.8,3.2078]
[1735838657730,0.74283,3474.4,3474.3,0.28804]
[1735838657932,2.71996394,3474.4,3473.8,3.2078]
[1735838658143,0.28806,3474.1,3474.0,0.28806]
[1735838658360,2.71996394,3474.4,3473.8,3.2078]
[1735838658553,0.28805,3474.3,3474.2,0.28805]
[1735838659046,0.4548,3474.4,3474.3,0.28804]
[1735838659639,0.74283,3474.4,3474.3,0.28804]
[1735838660045,0.4548,3474.4,3473.8,3.2078]
[1735838660351,0.28807,3474.1,3474.0,0.28806]
[1735838660739,2.71996394,3474.4,3473.8,3.2078]
[1735838660939,0.28807,3473.9,3473.8,3.49588]
[1735838661141,0.28807,3473.9,3473.8,3.2078]
[1735838661547,0.72247,3473.9,3473.8,3.2078]
[1735838662147,0.75277,3474.0,3473.8,3.2078]
[1735838662343,0.75277,3474.0,3473.9,0.28807]
[1735838662641,0.28807,3473.9,3473.8,3.2078]
[1735838663235,0.28807,3473.9,3473.8,3.49588]
[1735838663436,0.4647,3474.0,3473.3,3.2078]
[1735838663631,0.28809,3473.8,3473.7,0.28809]
[1735838663837,0.4647,3474.0,3473.3,3.2078]
[1735838664035,0.28809,3473.8,3473.3,3.2078]
[1735838664243,0.28809,3473.8,3473.7,0.28809]
[1735838664830,0.4647,3474.0,3473.3,3.2078]
[1735838665031,0.28808,3473.9,3473.7,0.28809]
[1735838665245,0.2881,3473.7,3473.3,3.2078]
[1735838665541,0.2881,3473.7,3473.6,0.2881]
[1735838665735,0.28813,3473.3,3473.1,0.28813]
[1735838665945,0.28813,3473.3,3473.1,0.28814]
[1735838666242,0.4645,3473.2,3473.1,0.28814]
[1735838666537,0.4645,3473.2,3472.6,1.4409]
[1735838666740,0.75264,3473.2,3472.6,1.4409]
[1735838666941,0.28815,3473.0,3472.9,0.28815]
[1735838667142,0.28815,3473.1,3472.9,0.28815]
[1735838667337,0.4645,3473.2,3472.9,0.28815]
[1735838667543,0.4645,3473.2,3473.0,0.28814]
[1735838667544,0.75264,3473.2,3473.0,0.28814]
[1735838668038,0.75264,3473.2,3472.5,3.2078]
[1735838668238,4.95349378,3473.2,3473.1,0.28814]
[1735838668844,4.95349378,3473.2,3472.9,3.2078]
[1735838668845,4.95349378,3473.2,3473.0,0.28814]
[1735838669049,4.95349378,3473.2,3473.1,0.28814]
[1735838669548,0.4645,3473.2,3473.1,0.28814]
[1735838669739,0.4313,3473.4,3473.3,0.28812]
[1735838670439,0.28813,3473.3,3473.0,0.28815]
[1735838670640,0.71942,3473.4,3473.2,0.28813]
[1735838670946,0.4313,3473.4,3473.3,0.28812]
[1735838671441,0.4313,3473.4,3472.9,3.2078]
[1735838671745,0.71942,3473.4,3473.2,0.28813]
[1735838671952,0.28812,3473.3,3473.2,0.28813]
[1735838672136,0.28812,3473.3,3473.0,0.28815]
[1735838672448,0.28812,3473.3,3472.9,3.2078]
[1735838672449,0.28815,3473.0,3472.9,3.2078]
[1735838673942,0.28815,3473.0,3472.9,3.49596]
[1735838674659,0.28815,3473.0,3472.9,0.28816]
[1735838674951,0.28815,3473.0,3472.8,0.28816]
[1735838675551,0.4483,3472.9,3472.8,0.28816]
[1735838675953,0.28817,3472.8,3472.4,3.2078]
[1735838676154,0.73646,3472.9,3472.8,0.28817]
[1735838676358,0.4483,3472.9,3472.4,3.2078]
[1735838676548,0.4483,3472.9,3472.8,0.28817]
[1735838677560,0.28814,3473.2,3473.1,0.28814]
[1735838677757,0.28815,3473.1,3473.0,0.28815]
[1735838678156,0.458,3473.3,3473.0,0.28815]
[1735838678358,0.28814,3473.2,3473.1,0.28814]
[1735838678660,0.28814,3473.2,3473.0,0.28814]
[1735838678855,0.458,3473.3,3473.0,0.28814]
[1735838679056,0.4398,3473.1,3472.9,0.28815]
[1735838679263,0.28815,3473.0,3472.9,0.28815]
[1735838680062,0.72795,3473.1,3473.0,0.28815]
[1735838680263,0.28815,3473.0,3472.9,0.28815]
[1735838680463,0.72795,3473.1,3473.0,0.28815]
[1735838680865,0.28815,3473.0,3472.9,0.28816]
[1735838681063,0.28818,3472.7,3472.6,0.28818]
[1735838682066,0.28816,3472.9,3472.8,0.28817]
[1735838682464,3.79889619,3473.1,3472.4,3.2078]
[1735838682671,0.28817,3472.8,3472.7,0.28817]
[1735838682865,0.72038,3473.0,3472.4,3.2078]
[1735838683066,0.28819,3472.5,3472.4,3.2078]
[1735838683563,0.423,3472.7,3471.9,3.2078]
[1735838683764,0.28823,3472.1,3472.0,0.28823]
[1735838683959,0.28822,3472.2,3472.1,0.28822]
[1735838684262,0.28823,3472.1,3472.0,0.28823]
[1735838684463,0.7357,3472.4,3472.0,0.28823]
[1735838684657,0.7357,3472.4,3472.2,0.28821]
[1735838684658,0.28821,3472.3,3472.2,0.28821]
[1735838684869,0.4475,3472.4,3471.9,3.2078]
[1735838685270,0.28822,3472.2,3472.0,0.28823]
[1735838685467,0.28822,3472.1,3472.0,0.28823]
[1735838685673,0.4475,3472.4,3471.9,3.2078]
[1735838686280,0.28822,3472.2,3472.1,0.28822]
[1735838686464,0.28821,3472.3,3472.2,0.28821]
[1735838686684,0.7357,3472.4,3472.3,0.28821]
[1735838686869,0.28821,3472.3,3472.2,0.28822]
[1735838687070,0.7357,3472.4,3472.3,0.28821]
[1735838687569,0.28821,3472.3,3472.2,0.28822]
[1735838688269,0.4475,3472.4,3471.9,3.2078]
[1735838688567,0.4475,3472.4,3472.3,0.28821]
[1735838688568,0.73571,3472.4,3472.3,0.28821]
[1735838688864,0.4475,3472.4,3471.9,3.2078]
[1735838689072,0.4475,3472.4,3472.3,0.28821]
[1735838691672,0.4475,3472.4,3472.3,3.49601]
[1735838695777,0.423,3472.7,3472.3,3.49601]
[1735838695977,0.4528,3472.8,3472.4,2.26516394]
[1735838696276,0.4528,3472.8,3472.7,0.28817]
[1735838697879,0.4441,3473.3,3472.7,2.98560394]
[1735838698082,0.4353,3473.2,3472.7,2.98560394]
[1735838698281,0.28815,3473.1,3473.0,0.28815]
[1735838699082,0.4353,3473.2,3472.7,3.92824]
[1735838699083,0.4353,3473.2,3472.7,3.2078]
[1735838699274,0.4353,3473.2,3472.9,0.28815]
[1735838699478,0.28815,3473.1,3472.7,3.2078]
[1735838699679,0.72344,3473.2,3472.7,3.2078]
[1735838700288,0.4353,3473.2,3472.7,3.2078]
[1735838700582,0.28818,3472.7,3472.6,0.28818]
[1735838701083,0.72036,3473.1,3472.3,3.2078]
[1735838701084,0.2882,3472.4,3472.3,3.2078]
[1735838701682,0.4428,3472.5,3471.9,7.72645389]
[1735838701878,0.28823,3472.0,3471.9,8.01469389]
[1735838702078,2.26516394,3472.3,3471.9,7.72645389]
[1735838702283,0.28823,3472.0,3471.9,4.80689389]
[1735838702473,2.55339394,3472.0,3471.9,4.51865389]
[1735838702781,0.28824,3471.9,3471.8,6.06713564]
[1735838702981,0.28829,3471.3,3471.2,0.2883]
[1735838703180,0.72063,3471.8,3471.1,6.06713564]
[1735838703181,2.26516394,3471.7,3471.1,6.06713564]
[1735838703578,0.2883,3471.2,3471.1,6.06713564]
[1735838704784,6.65296394,3471.4,3470.6,3.2078]
[1735838704988,6.65296394,3471.4,3470.9,0.28832]
[1735838705181,0.28831,3471.1,3471.0,0.28832]
[1735838705485,6.65296394,3471.4,3470.6,3.2078]
[1735838705687,0.2883,3471.3,3471.2,0.2883]
[1735838705986,0.7185,3471.3,3471.2,0.2883]
[1735838706185,0.7185,3471.3,3470.8,0.4534]
[1735838706186,0.4302,3471.3,3470.8,0.4534]
[1735838706385,0.28832,3471.0,3470.9,0.28832]
[1735838706582,0.28833,3470.9,3470.8,0.28833]
[1735838706885,0.28832,3471.0,3470.9,0.28832]
[1735838707384,0.28833,3470.9,3470.8,0.28833]
[1735838707982,0.28833,3470.9,3470.4,0.4534]
[1735838708185,0.28832,3471.0,3470.9,0.28832]
[1735838708381,2.26516394,3471.1,3470.4,0.4534]
[1735838708588,0.28832,3471.0,3470.8,0.28833]
[1735838708786,2.26516394,3471.1,3470.4,0.4534]
[1735838708988,0.28832,3471.0,3470.4,0.4534]
[1735838709190,0.28832,3471.0,3470.7,0.28833]
[1735838709486,0.28832,3471.0,3470.8,0.28833]
[1735838709878,0.4302,3471.3,3470.4,0.4534]
[1735838710087,0.28831,3471.1,3470.9,0.28832]
[1735838710283,0.4302,3471.3,3470.4,0.4534]
[1735838710477,0.28832,3471.0,3470.4,0.4534]
[1735838710679,0.4302,3471.3,3470.9,0.28832]
[1735838710884,0.4302,3471.3,3470.4,0.4534]
[1735838711085,0.28831,3471.1,3470.9,0.28832]
[1735838711389,0.4302,3471.3,3470.4,0.4534]
[1735838711583,0.2883,3471.2,3471.0,0.28831]
[1735838712090,0.2883,3471.2,3470.5,0.7209]
[1735838712288,0.4302,3471.3,3471.1,0.28831]
[1735838712478,0.2883,3471.2,3471.1,0.28831]
[1735838712682,0.4302,3471.3,3470.6,3.2078]
[1735838712882,0.2883,3471.2,3471.1,0.2883]
[1735838713090,0.4302,3471.3,3471.2,0.2883]
[1735838713283,3.49609,3471.4,3471.3,0.28829]
[1735838713488,3.49609,3471.4,3471.2,0.28829]
[1735838713489,0.2883,3471.3,3471.2,0.28829]
[1735838713887,3.2078,3471.4,3470.6,5.47296394]
[1735838714088,3.49609,3471.4,3471.2,0.28829]
[1735838714290,3.2078,3471.4,3471.2,0.28829]
[1735838714486,5.47296394,3471.4,3470.6,3.2078]
[1735838714686,0.2883,3471.2,3471.0,0.28831]
[1735838715093,5.47296394,3471.4,3470.6,3.2078]
[1735838715293,0.28831,3471.1,3470.9,0.28832]
[1735838715791,0.28832,3471.0,3470.8,0.28833]
[1735838715988,5.47296394,3471.4,3470.6,3.2078]
[1735838715989,2.26516394,3471.1,3470.6,3.2078]
[1735838716184,2.26516394,3471.1,3470.4,0.4534]
[1735838716185,2.26516394,3470.8,3470.4,0.4534]
[1735838716389,0.28835,3470.6,3470.4,0.74176]
[1735838717082,0.28836,3470.5,3470.4,0.4534]
[1735838717285,0.28835,3470.6,3470.4,0.74176]
[1735838717689,0.28835,3470.7,3470.5,0.28836]
[1735838718589,0.28836,3470.6,3470.4,0.74176]
[1735838719089,0.28836,3470.6,3470.5,0.28836]
[1735838719290,2.73086394,3470.8,3470.3,0.4204]
[1735838719491,0.28836,3470.5,3470.3,0.70877]
[1735838719889,0.28836,3470.5,3470.3,0.4204]
[1735838720097,0.28836,3470.5,3470.3,0.70877]
[1735838720592,0.28836,3470.5,3470.4,0.28837]
[1735838720795,0.28836,3470.6,3470.3,0.4204]
[1735838720987,0.28835,3470.7,3470.5,0.28835]
[1735838721183,0.4509,3470.9,3470.6,3.2078]
[1735838721391,0.28828,3471.5,3470.6,5.47296394]
[1735838721691,2.70036394,3471.6,3471.1,3.2078]
[1735838721990,0.28827,3471.5,3471.3,0.28829]
[1735838722398,0.28829,3471.4,3471.2,0.28829]
[1735838722597,0.28828,3471.5,3471.3,0.28829]
[1735838723490,0.2883,3471.2,3471.1,3.2078]
[1735838724196,0.2883,3471.3,3471.1,3.4961]
[1735838724799,2.70036394,3471.6,3471.1,3.49611]
[1735838724995,0.28829,3471.3,3471.1,3.2078]
[1735838725199,0.28829,3471.3,3471.2,0.2883]
[1735838725401,2.70036394,3471.6,3471.1,3.2078]
[1735838725896,0.28829,3471.4,3471.3,0.28829]
[1735838726094,2.70036394,3471.6,3471.1,3.2078]
[1735838726294,0.28829,3471.3,3471.2,0.2883]
[1735838726996,0.28829,3471.4,3471.3,0.28829]
[1735838727203,0.2883,3471.3,3471.2,0.2883]
[1735838727500,3.2078,3471.5,3471.1,0.2883]
[1735838727699,0.28828,3471.4,3471.1,0.2883]
[1735838727998,0.2883,3471.3,3471.2,0.2883]
[1735838728204,0.28828,3471.4,3471.1,0.2883]
[1735838728529,0.28828,3471.4,3471.2,0.28829]
[1735838728730,3.2078,3471.5,3470.7,3.6509]
[1735838728932,0.28828,3471.4,3470.7,3.6509]
[1735838729140,0.28828,3471.4,3471.2,0.28829]
[1735838729625,3.2078,3471.5,3471.2,0.28829]
[1735838729626,0.28829,3471.3,3471.2,0.28829]
[1735838729925,0.28829,3471.4,3471.3,0.28829]
[1735838730414,3.2078,3471.5,3470.7,3.6509]
[1735838730610,0.2883,3471.2,3471.1,0.2883]
[1735838731019,0.2883,3471.2,3470.7,3.6509]
[1735838731020,0.2883,3471.3,3470.7,3.6509]
[1735838731210,0.2883,3471.3,3471.2,0.2883]
[1735838731411,3.2078,3471.5,3470.7,3.6509]
[1735838731632,3.2078,3471.5,3471.4,0.28828]
[1735838732119,6.85513619,3472.0,3471.9,0.28824]
[1735838732327,6.56689619,3472.0,3471.3,0.72074]
[1735838732523,6.56689619,3472.0,3471.4,0.4207]
[1735838732821,6.85513619,3472.0,3471.9,0.28824]
[1735838733020,3.2078,3472.0,3471.9,0.28824]
[1735838734344,0.28822,3472.2,3472.1,0.28823]
[1735838734619,0.9011,3472.3,3471.6,3.92847]
[1735838734822,0.9011,3472.3,3472.2,0.28822]
[1735838734823,1.18931,3472.3,3472.2,0.28822]
[1735838735218,0.9011,3472.3,3472.2,0.28822]
[1735838735410,0.4425,3472.4,3471.7,0.4394]
[1735838735609,0.4425,3472.4,3472.3,0.28821]
[1735838735905,3.35909619,3472.8,3472.7,0.28818]
[1735838736102,3.35909619,3473.0,3472.4,3.2078]
[1735838736297,0.28817,3472.8,3472.7,0.28817]
[1735838737004,3.35909619,3473.0,3472.9,0.28816]
[1735838737005,3.64725619,3473.0,3472.9,0.28816]
[1735838737202,0.28816,3473.0,3472.9,0.28816]
[1735838737405,0.28817,3472.8,3472.5,0.4475]
[1735838737609,0.28818,3472.6,3472.5,0.4475]
[1735838737809,0.28818,3472.7,3472.6,0.28818]
[1735838738199,2.26516394,3472.8,3472.4,3.2078]
[1735838738403,0.28819,3472.6,3472.5,0.28819]
[1735838738711,0.8972,3472.7,3472.4,3.2078]
[1735838738909,0.28819,3472.5,3472.4,3.2078]
[1735838740305,0.28819,3472.5,3472.4,0.2882]
[1735838740507,0.2882,3472.4,3472.3,0.7357]
[1735838741003,0.28822,3472.2,3472.1,0.28822]
[1735838741708,0.28821,3472.4,3471.8,0.72063]
[1735838741897,0.4482,3472.6,3472.0,3.2078]
[1735838742104,0.73639,3472.6,3472.5,0.28819]
[1735838742302,2.23320353,3472.7,3472.6,0.28818]
[1735838742504,2.52138353,3472.7,3472.6,0.28818]
[1735838742705,0.28819,3472.6,3472.5,0.28819]
[1735838742907,2.52138353,3472.7,3472.6,0.28818]
[1735838743510,0.2882,3472.5,3472.3,0.2882]
[1735838743813,8.83206013,3472.8,3472.0,3.2078]
[1735838743814,5.47296394,3472.8,3472.0,3.2078]
[1735838743999,0.28819,3472.6,3472.0,3.92838]
[1735838744200,0.28818,3472.7,3472.1,1.0088]
[1735838744412,5.47296394,3472.8,3472.1,0.28823]
[1735838744598,0.28818,3472.7,3472.6,0.28818]
[1735838744800,5.47296394,3472.8,3472.1,0.28823]
[1735838745202,0.2882,3472.5,3472.4,0.2882]
[1735838745410,5.47296394,3472.8,3472.1,0.28823]
[1735838745609,0.28819,3472.6,3472.5,0.28818]
[1735838746211,5.47296394,3472.8,3472.0,3.2078]
[1735838746405,0.28819,3472.6,3472.5,0.28819]
[1735838747710,0.2882,3472.5,3472.4,0.2882]
[1735838748810,0.22991267,3472.7,3472.0,3.2078]
[1735838749109,0.28823,3472.2,3472.1,0.28822]
[1735838749807,0.4564,3472.4,3472.0,3.2078]
[1735838750205,0.4564,3472.4,3472.2,0.28821]
[1735838750206,0.28821,3472.3,3472.2,0.28821]
[1735838750704,0.28823,3472.1,3472.0,3.49603]
[1735838750911,0.28822,3472.2,3472.1,0.28822]
[1735838751305,0.28821,3472.3,3472.2,0.28822]
[1735838751500,0.28822,3472.2,3472.1,0.28822]
[1735838752920,0.8963,3472.4,3472.0,3.2078]
[1735838753315,0.28823,3472.1,3472.0,3.49603]
[1735838753911,0.28822,3472.2,3472.1,0.28822]
[1735838754313,0.8963,3472.4,3472.0,3.2078]
[1735838754508,0.28822,3472.2,3472.1,0.28823]
[1735838754810,3.12950353,3472.4,3472.0,3.2078]
[1735838755014,3.41771353,3472.4,3472.3,0.28821]
[1735838756143,0.28821,3472.4,3472.3,0.28821]
[1735838756448,0.28821,3472.4,3472.0,3.2078]
[1735838756449,2.23320353,3472.5,3472.4,0.2882]
[1735838757628,2.52139353,3472.6,3472.5,0.28819]
[1735838757832,2.23320353,3472.6,3472.5,0.28819]
[1735838758339,2.52139353,3472.6,3472.5,0.28819]
[1735838758526,2.23320353,3472.6,3472.5,0.28819]
[1735838759627,2.23320353,3472.6,3472.5,3.49599]
[1735838759928,0.74156,3472.9,3472.8,0.28817]
[1735838760321,0.4534,3472.9,3472.5,3.2078]
[1735838761213,0.4534,3472.9,3472.8,0.28817]
[1735838761214,0.74157,3472.9,3472.8,0.28817]
[1735838761921,0.4534,3472.9,3472.8,0.28817]
[1735838762315,0.73356,3473.0,3472.5,3.2078]
[1735838762624,2.23320353,3473.3,3473.2,0.28814]
[1735838762922,2.23320353,3473.4,3473.3,0.28813]
[1735838764324,2.23320353,3473.4,3473.1,0.8865]
[1735838764325,0.28811,3473.6,3473.1,0.8865]
[1735838764622,0.28812,3473.4,3473.3,0.28812]
[1735838764915,0.28812,3473.5,3473.3,0.28812]
[1735838765121,0.28812,3473.4,3473.3,0.28812]
[1735838765318,2.26516394,3473.7,3473.1,0.8865]
[1735838765525,0.28815,3473.0,3472.9,3.49596]
[1735838765717,0.28814,3473.2,3473.1,0.28814]
[1735838766119,0.28812,3473.4,3473.3,0.28813]
[1735838766623,3.2078,3473.5,3472.9,3.2078]
[1735838766812,3.2078,3473.5,3473.2,0.28813]
[1735838767016,0.28814,3473.2,3473.1,0.28814]
[1735838767221,2.26516394,3473.4,3472.9,3.2078]
[1735838767519,2.26516394,3473.4,3472.6,0.28818]
[1735838767520,2.26516394,3473.0,3472.6,0.28818]
[1735838767720,1.61337,3472.9,3472.5,3.2078]
[1735838768025,1.89933,3473.3,3472.5,3.2078]
[1735838768026,3.35909619,3473.1,3473.0,0.28815]
[1735838768717,3.35909619,3473.1,3472.6,0.72046]
[1735838768920,4.77714378,3473.1,3473.0,0.28815]
[1735838769126,4.77714378,3473.1,3472.9,0.28816]
[1735838769127,0.28816,3473.0,3472.9,0.28816]
[1735838769334,2.26516394,3473.0,3472.5,3.2078]
[1735838769536,0.28817,3472.8,3472.7,0.28817]
[1735838770149,3.64150978,3472.8,3472.7,0.28817]
[1735838770334,0.28818,3472.7,3472.6,0.28818]
[1735838770537,3.35333978,3472.8,3472.5,3.2078]
[1735838771029,0.28819,3472.6,3472.5,3.2078]
[1735838771224,0.28819,3472.6,3472.5,3.49599]
[1735838771427,0.28819,3472.6,3472.5,3.2078]
[1735838771818,6.75415772,3472.7,3472.6,0.28819]
[1735838771819,4.77717378,3472.7,3472.6,0.28819]
[1735838772232,0.28819,3472.6,3472.5,3.49599]
[1735838772532,4.77717378,3472.7,3472.6,0.28819]
[1735838772733,3.79052309,3472.7,3472.6,0.28819]
[1735838773432,0.28819,3472.6,3472.5,3.2078]
[1735838773732,3.79052309,3472.7,3472.6,0.28819]
[1735838773934,0.28818,3472.7,3472.6,0.28819]
[1735838774329,5.91675046,3472.8,3472.7,0.28818]
[1735838774728,0.28818,3472.7,3472.6,0.28818]
[1735838774928,0.28819,3472.6,3472.5,3.2078]
[1735838775129,0.2882,3472.5,3472.4,0.2882]
[1735838775726,3.15241831,3472.9,3472.3,0.9046]
[1735838776230,3.15241831,3472.9,3472.2,0.28822]
[1735838776231,2.98562394,3472.7,3472.2,0.28822]
[1735838776430,0.28821,3472.4,3472.1,3.2078]
[1735838776738,0.28819,3472.6,3472.1,3.49603]
[1735838776931,0.849,3472.3,3472.2,0.28822]
[1735838777332,1.13721,3472.3,3472.2,0.28822]
[1735838777830,0.28822,3472.2,3472.1,3.49602]
[1735838778134,0.849,3472.3,3472.2,0.28822]
[1735838778135,1.13721,3472.3,3472.2,0.28822]
[1735838778534,0.849,3472.3,3472.2,0.28822]
[1735838779234,1.13721,3472.3,3472.2,0.28822]
[1735838779937,0.849,3472.3,3472.2,0.28822]
[1735838780639,0.849,3472.3,3472.1,3.2078]
[1735838780838,1.13722,3472.3,3472.2,0.28822]
[1735838781031,1.13722,3472.3,3472.1,3.49602]
[1735838781231,0.28822,3472.2,3472.1,3.2078]
[1735838781533,0.4513,3472.2,3472.1,3.49603]
[1735838782334,0.73952,3472.2,3472.1,3.2078]
[1735838782528,0.73952,3472.2,3472.1,3.49603]
[1735838782733,2.97773831,3472.2,3472.1,3.49603]
[1735838783137,2.97773831,3472.2,3472.1,3.2078]
[1735838783336,2.97773831,3472.2,3471.7,0.28825]
[1735838783337,0.28826,3471.8,3471.7,0.28825]
[1735838783540,0.28825,3471.9,3471.8,0.28825]
[1735838783734,0.28825,3471.9,3471.8,0.28824]
[1735838783933,0.28824,3472.0,3471.9,0.28824]
[1735838784237,2.26516394,3472.1,3471.4,7.66494031]
[1735838784635,0.28826,3471.8,3471.7,0.28826]
[1735838784834,2.26516394,3472.1,3471.4,7.66494031]
[1735838785036,2.26516394,3472.1,3471.8,0.28825]
[1735838785037,0.28825,3471.9,3471.8,0.28825]
[1735838786642,2.53083296,3471.9,3471.8,0.28825]
[1735838787437,0.28828,3471.6,3471.5,0.28828]
[1735838787639,2.26516394,3471.8,3471.4,0.453]
[1735838787841,0.28828,3471.5,3471.4,0.453]
[1735838788440,0.28829,3471.3,3471.2,3.4961]
[1735838789734,0.4354,3471.4,3471.2,3.2078]
[1735838789934,0.72369,3471.4,3471.3,0.28829]
[1735838790644,0.28829,3471.3,3471.2,3.4961]
[1735838790839,0.28829,3471.3,3471.2,3.2078]
[1735838791044,0.28829,3471.3,3471.1,0.28831]
[1735838791345,0.28832,3471.0,3470.9,0.72064819]
[1735838791537,0.28832,3471.0,3470.9,1.00897819]
[1735838791736,2.26516394,3471.2,3470.9,1.00897819]
[1735838791737,0.4512,3471.1,3471.0,0.28832]
[1735838792144,0.28832,3471.0,3470.9,1.00896819]
[1735838792344,0.73951,3471.1,3471.0,0.28832]
[1735838794147,4.50437936,3471.2,3470.9,0.4441]
[1735838794346,0.28832,3471.0,3470.9,0.73242]